Cogmind - Beta 13 X1 --- EXPLORER MODE // 2023.07.25 @ 08:23:28 Player: maxwell Result: Escaped! Performance ------------- Evolutions (9) 4500 Regions Visited (18) 3600 Robots Destroyed (59) 295 Value Destroyed (2286) 2286 Prototype IDs (32) 640 Alien Tech Used (0) 0 Bonus (4851) 4851 TOTAL SCORE: 16172 Bonus ------- Entered DSFs 1000 Aligned with FarCom 300 Win 3000 Win Speed 551 Cogmind --------- Core Integrity 1510/1600 Matter 277/300 Energy 338/350 System Corruption 1% Temperature Cool (21) Movement Flying (22) Location To Epsilon Eridani Parts ------- > --- POWER (4) -------- Light Antimatter Reactor Light Particle Reactor Micro Antimatter Reactor Micro Antimatter Reactor > --- PROPULSION (16) -- Nuclear Pulse Array Diametric Drive Diametric Drive Flying Fortress v7 Impulse Thruster Array Impulse Thruster Array Impulse Thruster Array Impulse Thruster Array > --- UTILITY (4) ------ Experimental Heat Sink Large Storage Unit ECM Suite Experimental Hacking Suite > --- WEAPON (2) ------- Nanosword Enhanced Force Lance > --- INVENTORY (15) --- Cooled Field Propulsion Drive Cooled Field Propulsion Drive Diametric Drive Q-thruster Q-thruster Impulse Thruster Array Advanced Coolant Injector Medium Storage Unit Advanced Cloaking Device Hacking Suite Improved System Restoration Module Thermic Laser Improved Grenade Launcher Lance Peak State ------------ > --- POWER ------------ Light Antimatter Reactor Light Particle Reactor Micro Antimatter Reactor Micro Antimatter Reactor > --- PROPULSION ------- Nuclear Pulse Array Impulse Thruster Impulse Thruster Flying Fortress v7 Impulse Thruster Array Impulse Thruster Array Impulse Thruster Array Impulse Thruster Array > --- UTILITY ---------- Experimental Heat Sink Large Storage Unit Advanced Cloaking Device Experimental Hacking Suite > --- WEAPON ----------- Nanosword Enhanced Force Lance > --- INVENTORY -------- Cooled Field Propulsion Drive Cooled Field Propulsion Drive Diametric Drive Q-thruster Q-thruster Impulse Thruster Array Advanced Coolant Injector Medium Storage Unit ECM Suite Hacking Suite Improved System Restoration Module Thermic Laser Improved Grenade Launcher Lance [Rating: 203] Favorites ----------- Power Ion Engine Engine Ion Engine Power Core Light Nuclear Core Reactor Micro Antimatter Reactor Propulsion Gravmag Array Treads Light Treads Leg Aluminum Leg Hover Unit Gravmag Array Flight Unit Impulse Thruster Array Utility Large Storage Unit Device Cooling System Storage Large Storage Unit Processor Targeting Computer Hackware Experimental Hacking Suite Protection Hardened Light Armor Plating Weapon Medium Laser Energy Gun Medium Laser Ballistic Gun Assault Rifle Launcher Improved Grenade Launcher Impact Weapon Maul Slashing Weapon Power Sword Piercing Weapon Enhanced Force Lance Build | -11 -10 -10 -9 -9 -9 -8 -8 -7 -7 -6 -5 -5 -5 -4 -3 -2 -2 -1 ------- Run | Jun Mat Min Mat Min Exi Min Mat Fac DSF Fac Fac Was Fac Fac Res Res DSF Acc Slots Evolved 19 | . 1 . 2 . . . 2 2 . 2 2 . . 2 2 2 . 2 Power 3 | . . . . . . . 1 . . . 1 . . . . 1 . . Propulsion 14 | . 1 . . . . . 1 2 . 2 1 . . 2 2 1 . 2 Utility 2 | . . . 2 . . . . . . . . . . . . . . . Weapon . | . . . . . . . . . . . . . . . . . . . Parts Attached 116 | . 5 . 8 . 3 . 5 . 14 12 1 . 10 9 23 7 . 19 Power 17 | . 1 . 1 . . . 1 . 3 2 1 . 2 . 5 . . 1 Engine 7 | . 1 . 1 . . . 1 . 2 2 . . . . . . . . Core 4 | . . . . . . . . . 1 . 1 . 2 . . . . . Reactor 6 | . . . . . . . . . . . . . . . 5 . . 1 Propulsion 55 | . 2 . 1 . 3 . 1 . 7 3 . . 3 8 12 5 . 10 Treads 9 | . 1 . . . 3 . 1 . 4 . . . . . . . . . Leg 2 | . 1 . 1 . . . . . . . . . . . . . . . Wheel . | . . . . . . . . . . . . . . . . . . . Hover 19 | . . . . . . . . . 3 3 . . 3 8 2 . . . Flight 25 | . . . . . . . . . . . . . . . 10 5 . 10 Utility 25 | . 1 . 5 . . . 1 . 3 1 . . 3 1 2 2 . 6 Device 14 | . . . 2 . . . . . 1 1 . . 2 1 2 1 . 4 Storage 1 | . . . 1 . . . . . . . . . . . . . . . Processor 3 | . . . 1 . . . . . . . . . . . . 1 . 1 Hackware 1 | . . . . . . . . . . . . . . . . . . 1 Protection 6 | . 1 . 1 . . . 1 . 2 . . . 1 . . . . . Artifact . | . . . . . . . . . . . . . . . . . . . Weapon 19 | . 1 . 1 . . . 2 . 1 6 . . 2 . 4 . . 2 Energy Gun 6 | . . . 1 . . . 2 . 1 2 . . . . . . . . Energy Cannon . | . . . . . . . . . . . . . . . . . . . Ballistic Gun 1 | . 1 . . . . . . . . . . . . . . . . . Ballistic Cannon . | . . . . . . . . . . . . . . . . . . . Launcher 2 | . . . . . . . . . . 1 . . 1 . . . . . Special Weapon . | . . . . . . . . . . . . . . . . . . . Impact Weapon 2 | . . . . . . . . . . 2 . . . . . . . . Slashing Weapon 5 | . . . . . . . . . . 1 . . . . 4 . . . Piercing Weapon 3 | . . . . . . . . . . . . . 1 . . . . 2 Special Melee Weapon . | . . . . . . . . . . . . . . . . . . . Unidentified Prototypes 9 | . . . . . . . 1 . . 1 . . 1 . 2 1 . 3 Parts Lost 17 | . . . 1 . . . . . 8 . . . 4 . 2 . 2 . Power 5 | . . . . . . . . . 3 . . . 2 . . . . . Propulsion 5 | . . . . . . . . . 2 . . . 1 . 1 . 1 . Utility 5 | . . . 1 . . . . . 2 . . . 1 . . . 1 . Weapon 2 | . . . . . . . . . 1 . . . . . 1 . . . Highest Loss Streak 4 | . . . 1 . . . . . 4 . . . 3 . 1 . 2 . To Critical Strikes . | . . . . . . . . . . . . . . . . . . . Average Slot Usage (%) 88 | . 100 100 99 100 100 100 98 85 83 78 77 77 77 86 75 62 58 68 Engine 6 | . 12 12 10 10 10 10 15 14 8 6 5 5 2 . . . . . Core 3 | . . . . . . . . . . 6 11 11 13 15 3 . . . Reactor 2 | . . . . . . . . . . . . . . . 9 12 12 14 Treads 9 | . 12 12 . . 12 30 32 28 33 . . . . . . . . . Leg 9 | . 25 25 29 30 17 . . . . . . . . . . . . . Hover 9 | . . . . . . . . . 1 28 27 27 29 42 22 . . . Flight 4 | . . . . . . . . . . . . . . . 14 29 27 30 Device 7 | . . . 9 10 10 10 8 7 8 12 11 11 7 9 11 12 9 5 Storage 7 | . 12 12 10 10 10 10 8 7 7 6 5 5 5 5 4 4 4 3 Processor 3 | . . . 9 10 10 10 8 7 1 . . . . . . . . 1 Protection 7 | . 12 12 10 10 10 10 8 7 6 6 5 5 6 5 . . . . Energy Gun 10 | . 15 12 19 20 20 20 16 14 14 8 5 5 1 . . . . . Ballistic Gun 1 | . 8 12 . . . . . . . . . . . . . . . . Slashing Weapon 1 | . . . . . . . . . . . 5 5 5 5 5 4 4 3 Naked Turns . | . . . . . . . . . . . . . . . . . . . Heaviest Build 74 | 22 22 22 34 32 32 32 38 38 47 52 55 55 70 61 68 54 54 74 Greatest Support 150 | 20 20 20 33 33 60 60 82 82 130 80 80 80 92 120 150 129 129 142 Greatest Overweight (x) 2 | 1 2 1 1 . . . . . . . . . . . . . . . Average Overweight (x) . | 1 1 1 . . . . . . . . . . . . . . . . Largest Inventory Capacity 15 | . 10 10 15 15 15 15 15 15 15 15 15 15 15 15 15 15 15 15 Average Capacity 14 | . 10 10 12 15 15 15 15 15 15 15 15 15 15 15 15 15 15 15 Most Carried 15 | . 9 9 11 10 11 11 15 15 15 15 14 15 15 15 15 15 15 15 Average Carried 12 | . 7 9 10 10 10 11 14 15 14 14 14 14 14 14 12 13 15 14 Final Capacity 15 | 10 10 10 15 15 15 15 15 15 15 15 15 15 15 15 15 15 15 15 Final Carried 15 | 7 9 9 10 10 11 11 15 15 15 14 14 15 15 15 11 15 15 15 Class Distribution -------------------- 81% | Hacker-Mutant 17% | Hacker-Sprinter Dominant Class ---------------- Hacker-Mutant | -10/Materials Hacker-Mutant | -10/Mines Hacker-Mutant | -9/Materials Hacker-Mutant | -9/Mines Hacker-Mutant | -9/Exiles Hacker-Mutant | -8/Mines Hacker-Mutant | -8/Materials Hacker-Mutant | -7/Factory Hacker-Mutant | -7/DSF Hacker-Mutant | -6/Factory Hacker-Mutant | -5/Factory Hacker-Mutant | -5/Waste Hacker-Mutant | -5/Factory Hacker-Mutant | -4/Factory Hacker-Sprinter | -3/Research Generator-Sprinter | -2/Research Generator-Sprinter | -2/DSF Hacker-Sprinter | -1/Access Resources | -11 -10 -10 -9 -9 -9 -8 -8 -7 -7 -6 -5 -5 -5 -4 -3 -2 -2 -1 ----------- Run | Jun Mat Min Mat Min Exi Min Mat Fac DSF Fac Fac Was Fac Fac Res Res DSF Acc Matter Collected 1374 | 200 62 . 96 . . 34 50 . 75 132 54 . 104 120 185 . . 262 Remotely . | . . . . . . . . . . . . . . . . . . . Salvage Created 2746 | . 196 . 560 . . 50 262 . 601 75 . . 91 319 304 . . 288 Parts 148 | . 11 . 18 . . 1 14 . 41 2 . . 5 15 24 . . 17 Haulers Intercepted 1 | . . . . . . . . . . . . . . . . . . 1 Recyclers Shooed 1 | . . . 1 . . . . . . . . . . . . . . . Parts Field Recycled . | . . . . . . . . . . . . . . . . . . . Retrieved Matter . | . . . . . . . . . . . . . . . . . . . Parts Self-Destructed . | . . . . . . . . . . . . . . . . . . . Prevented . | . . . . . . . . . . . . . . . . . . . Kills | -11 -10 -10 -9 -9 -9 -8 -8 -7 -7 -6 -5 -5 -5 -4 -3 -2 -2 -1 ------- Run | Jun Mat Min Mat Min Exi Min Mat Fac DSF Fac Fac Was Fac Fac Res Res DSF Acc Combat Hostiles Destroyed 44 | . 4 . 10 . . 1 7 . 12 1 . . 4 . 3 . . 2 Melee 6 | . . . . . . . . . . . . . 1 . 3 . . 2 Guns 30 | . 4 . 9 . . 1 4 . 11 1 . . . . . . . . AOE 3 | . . . . . . . . . . . . . 3 . . . . . Classes Destroyed 15 | . 2 . 3 . . 1 2 . 2 . . . . 2 2 . . 1 Worker 2 | . . . . . . . . . . . . . . . 2 . . . Builder 3 | . . . . . . . . . . . . . . 1 2 . . . Tunneler 1 | . . . . . . . 1 . . . . . . . . . . . Hauler 1 | . . . . . . . . . . . . . . . . . . 1 Recycler 3 | . . . 1 . . . . . . . . . . 2 . . . . Operator 2 | . . . . . . . . . . . . . . 1 . . . 1 Watcher 3 | . 1 . . . . . . . . . . . . . 1 . . 1 Swarmer 9 | . . . . . . . 3 . 3 . . . 3 . . . . . Grunt 13 | . 4 . 3 . . . 2 . 4 . . . . . . . . . Duelist 2 | . . . 2 . . . . . . . . . . . . . . . Sentry 9 | . . . 5 . . . 1 . 1 1 . . 1 . . . . . Specialist 2 | . . . . . . . . . 2 . . . . . . . . . Hunter 2 | . . . . . . 1 1 . . . . . . . . . . . Programmer 5 | . . . . . . . . . . . . . . . 3 . . 2 Heavy 2 | . . . . . . . . . 2 . . . . . . . . . Best Kill Streak 6 | . 3 . 2 . . 1 5 . 6 1 . . 3 2 5 . . 1 Combat Bots Only 6 | . 3 . 2 . . 1 4 . 6 1 . . 3 . 3 . . 1 Max Kills in Single Turn 2 | . 1 . 1 . . 1 2 . 1 1 . . 1 1 1 . . 1 Gunslinging 1 | . . . . . . . 1 . . . . . . . . . . . Exploded 1 | . . . . . . . . . . . . . 1 . . . . . Melee 1 | . . . . . . . . . . . . . 1 . 1 . . 1 Uniques/NPCs Destroyed . | . . . . . . . . . . . . . . . . . . . Combat | -11 -10 -10 -9 -9 -9 -8 -8 -7 -7 -6 -5 -5 -5 -4 -3 -2 -2 -1 -------- Run | Jun Mat Min Mat Min Exi Min Mat Fac DSF Fac Fac Was Fac Fac Res Res DSF Acc Damage Taken 4337 | . 134 . 269 . . 62 95 . 1432 335 . . 586 303 601 . 177 343 Core 435 | . 13 . 8 . . . . . 111 84 . . 106 18 5 . . 90 Absorbed by Shields . | . . . . . . . . . . . . . . . . . . . Redirected to Shielding 131 | . . . . . . 17 42 . 72 . . . . . . . . . Ignored by Resistances 2259 | . 87 . 161 . . 38 58 . 853 75 . . 157 177 355 . 96 202 Core Remaining (%) 95 | 100 . 94 . . . 98 100 . 84 90 . . 89 98 99 . 100 94 Volleys Fired 142 | . 18 . 34 . . 6 18 . 57 6 . . 3 . . . . . Largest 2 | . 2 . 2 . . 2 2 . 2 2 . . 1 . . . . . Hottest 154 | . 100 . 100 . . 100 100 . 100 154 . . 36 . . . . . Shots Fired 279 | . 36 . 68 . . 12 36 . 114 10 . . 3 . . . . . Gun 274 | . 36 . 68 . . 12 36 . 114 8 . . . . . . . . Cannon . | . . . . . . . . . . . . . . . . . . . Launcher 5 | . . . . . . . . . . 2 . . 3 . . . . . Special . | . . . . . . . . . . . . . . . . . . . Kinetic 14 | . 14 . . . . . . . . . . . . . . . . . Thermal 260 | . 22 . 68 . . 12 36 . 114 8 . . . . . . . . Explosive 5 | . . . . . . . . . . 2 . . 3 . . . . . Electromagnetic . | . . . . . . . . . . . . . . . . . . . Robot Hit Streak 77 | . 11 . 69 . . 77 35 . 41 15 . . . . . . . . Robot Miss Streak 1 | . 1 . . . . 1 . . 1 . . . . . . . . . Penetration Max . | . . . . . . . . . . . . . . . . . . . Secondary Targets 6 | . 1 . . . . . 1 . 4 . . . . . . . . . Max Gunslinging Chain 1 | . 1 . . . . . 1 . 1 . . . . . . . . . Shots Hit Robots 293 | . 31 . 66 . . 10 33 . 101 8 . 1 5 4 14 . . 20 Core Hits 114 | . 11 . 22 . . 2 13 . 38 3 . . 8 3 9 . . 5 Critical Kills . | . . . . . . . . . . . . . . . . . . . Critical Parts Destroyed . | . . . . . . . . . . . . . . . . . . . Critical Strikes 30 | . 4 . 9 . . 1 6 . 4 1 . . . 1 2 . . 2 Burn 25 | . 4 . 9 . . 1 6 . 4 1 . . . . . . . . Sever 4 | . . . . . . . . . . . . . . . 2 . . 2 Impale 1 | . . . . . . . . . . . . . . 1 . . . . Melee Attacks 129 | . . . . . . . . . . 8 . 1 31 32 32 . . 25 Impact 6 | . . . . . . . . . . 6 . . . . . . . . Slashing 80 | . . . . . . . . . . 2 . 1 21 7 29 . . 20 Piercing 43 | . . . . . . . . . . . . . 10 25 3 . . 5 Sneak Attacks 11 | . . . . . . . . . . . . . . 4 4 . . 3 Combat Hostiles . | . . . . . . . . . . . . . . . . . . . Follow-up Attacks . | . . . . . . . . . . . . . . . . . . . Damage Inflicted 6831 | . 378 . 847 4 . 134 413 . 1280 148 . 23 490 538 1125 . . 1451 Guns 3174 | . 378 . 835 . . 123 410 . 1280 148 . . . . . . . . Cannons . | . . . . . . . . . . . . . . . . . . . Explosions 292 | . . . . . . . . . . . . . 292 . . . . . Melee 3335 | . . . . . . . . . . . . 23 198 538 1125 . . 1451 Ramming 30 | . . . 12 4 . 11 3 . . . . . . . . . . . Kinetic 172 | . 172 . . . . . . . . . . . . . . . . . Thermal 3002 | . 206 . 835 . . 123 410 . 1280 148 . . . . . . . . Explosive 292 | . . . . . . . . . . . . . 292 . . . . . Electromagnetic . | . . . . . . . . . . . . . . . . . . . Impact . | . . . . . . . . . . . . . . . . . . . Slashing 2152 | . . . . . . . . . . . . 23 73 . 866 . . 1190 Piercing 1183 | . . . . . . . . . . . . . 125 538 259 . . 261 Highest Corruption 3 | . . . . . . . . . . . . . 2 1 2 3 . 2 Average Corruption 1 | . . . . . . . . . . . . . 2 1 1 1 . 1 Corruption Purged 6 | . . . . . . . . . . . . . . . 1 3 . 2 Corruption Blocked . | . . . . . . . . . . . . . . . . . . . Effects 4 | . . . . . . . . . . . . . 3 1 . . . . Message Errors 4 | . . . . . . . . . . . . . 3 1 . . . . Overload Shots . | . . . . . . . . . . . . . . . . . . . Overflow Damage 463 | . . . . . . . . . . . . . 41 90 62 . . 270 Projectiles . | . . . . . . . . . . . . . . . . . . . Explosions 41 | . . . . . . . . . . . . . 41 . . . . . Melee 422 | . . . . . . . . . . . . . . 90 62 . . 270 Knockbacks 1 | . . . . . . 1 . . . . . . . . . . . . Impact 1 | . . . . . . 1 . . . . . . . . . . . . Kinetic . | . . . . . . . . . . . . . . . . . . . Secondary . | . . . . . . . . . . . . . . . . . . . Self-Inflicted Damage . | . . . . . . . . . . . . . . . . . . . Shots . | . . . . . . . . . . . . . . . . . . . Rammed 2 | . . . . . . 1 1 . . . . . . . . . . . Targets Rammed 5 | . . . 1 1 . 1 2 . . . . . . . . . . . Kicked 2 | . . . 1 1 . . . . . . . . . . . . . . Crushed 1 | . . . . . . . 1 . . . . . . . . . . . Highest Temperature 361 | . 361 . 18 . . . 18 . 21 246 . . 265 92 204 . . 13 Average Temperature 75 | . 175 . 13 . . . 13 . 7 126 . . 127 27 53 . . 9 Received Heat Transfer 876 | . 123 . 135 . . . 45 . 375 60 . . 54 30 36 . . 18 Siege Activations . | . . . . . . . . . . . . . . . . . . . Robots Corrupted . | . . . . . . . . . . . . . . . . . . . Combat Hostiles . | . . . . . . . . . . . . . . . . . . . Parts Fried . | . . . . . . . . . . . . . . . . . . . Impact Corruptions . | . . . . . . . . . . . . . . . . . . . Robots Melted 6 | . . . 2 . . . 3 . 1 . . . . . . . . . Combat Hostiles 5 | . . . 1 . . . 3 . 1 . . . . . . . . . Parts Melted 27 | . 2 . 11 . . 2 5 . 2 5 . . . . . . . . Heat Transferred 10597 | . 888 . 3108 . . 444 1665 . 4070 422 . . . . . . . . Parts Sabotaged . | . . . . . . . . . . . . . . . . . . . Parts Stolen . | . . . . . . . . . . . . . . . . . . . Parts Stripped . | . . . . . . . . . . . . . . . . . . . Power Chain Reactions . | . . . . . . . . . . . . . . . . . . . Missiles Intercepted . | . . . . . . . . . . . . . . . . . . . Alert | -11 -10 -10 -9 -9 -9 -8 -8 -7 -7 -6 -5 -5 -5 -4 -3 -2 -2 -1 ------- Run | Jun Mat Min Mat Min Exi Min Mat Fac DSF Fac Fac Was Fac Fac Res Res DSF Acc Peak Influence 473 | . 115 . 255 30 . 45 244 80 283 294 105 70 188 306 473 145 85 175 Initial 135 | . . . . 30 . . 12 80 43 109 105 25 37 9 118 135 85 29 Average 99 | . 75 . 98 30 . 13 78 80 142 205 105 49 91 130 225 139 74 80 Maximum Alert Level 2 | . . . 1 . . . 1 . 1 1 . . . 1 2 . . . Low Security (%) 85 | . 100 100 83 100 . 100 87 100 76 40 100 100 100 70 59 100 100 100 Level 1 13 | . . . 16 . . . 12 . 23 59 . . . 29 31 . . . Level 2 . | . . . . . . . . . . . . . . . 9 . . . Level 3 . | . . . . . . . . . . . . . . . . . . . Level 4 . | . . . . . . . . . . . . . . . . . . . Level 5 . | . . . . . . . . . . . . . . . . . . . High Security . | . . . . . . . . . . . . . . . . . . . Max Security . | . . . . . . . . . . . . . . . . . . . Sterilizations 1 | . . . . . . . . . 1 . . . . . . . . . Squads Dispatched 14 | . . . 1 . . . 1 . 3 . . . 2 1 3 . . 3 Investigation 2 | . . . . . . . . . . . . . . 1 . . . 1 Extermination 2 | . . . . . . . . . . . . . . . 1 . . 1 Reinforcement 10 | . . . 1 . . . 1 . 3 . . . 2 . 2 . . 1 Assault . | . . . . . . . . . . . . . . . . . . . Garrison . | . . . . . . . . . . . . . . . . . . . Intercept . | . . . . . . . . . . . . . . . . . . . Searches Triggered . | . . . . . . . . . . . . . . . . . . . Construction Impeded . | . . . . . . . . . . . . . . . . . . . Haulers Reinforced . | . . . . . . . . . . . . . . . . . . . Active Scanning Responses . | . . . . . . . . . . . . . . . . . . . Cargo Convoy Interrupts . | . . . . . . . . . . . . . . . . . . . Stealth | -11 -10 -10 -9 -9 -9 -8 -8 -7 -7 -6 -5 -5 -5 -4 -3 -2 -2 -1 --------- Run | Jun Mat Min Mat Min Exi Min Mat Fac DSF Fac Fac Was Fac Fac Res Res DSF Acc Distress Signals 11 | . 2 . 1 . . . 3 . . 1 . . 1 2 1 . . . Communications Jammed 7 | . . . . . . . . . . . . . 7 . . . . . Distress Signals . | . . . . . . . . . . . . . . . . . . . Times Spotted 116 | . 6 . 14 . . 1 9 . 15 6 . 6 11 17 18 . 1 12 Peak Tracking Total 11 | . 3 . 3 . . 1 3 . 4 6 . 6 4 11 9 . 1 5 Tactical Retreats 19 | . . . 1 . . . 1 . 2 2 . . 2 4 4 . . 3 Traps | -11 -10 -10 -9 -9 -9 -8 -8 -7 -7 -6 -5 -5 -5 -4 -3 -2 -2 -1 ------- Run | Jun Mat Min Mat Min Exi Min Mat Fac DSF Fac Fac Was Fac Fac Res Res DSF Acc Traps Triggered 12 | . 3 . 1 . . . 1 . . . 1 . . 2 3 . 1 . Indirectly . | . . . . . . . . . . . . . . . . . . . Trap Hack Attempts . | . . . . . . . . . . . . . . . . . . . Triggered . | . . . . . . . . . . . . . . . . . . . Disarmed . | . . . . . . . . . . . . . . . . . . . Reprogrammed . | . . . . . . . . . . . . . . . . . . . Reused . | . . . . . . . . . . . . . . . . . . . Traps Extracted . | . . . . . . . . . . . . . . . . . . . Installed . | . . . . . . . . . . . . . . . . . . . Triggered . | . . . . . . . . . . . . . . . . . . . Machines | -11 -10 -10 -9 -9 -9 -8 -8 -7 -7 -6 -5 -5 -5 -4 -3 -2 -2 -1 ---------- Run | Jun Mat Min Mat Min Exi Min Mat Fac DSF Fac Fac Was Fac Fac Res Res DSF Acc Machines Disabled 1 | . . . . . . . . . . 1 . . . . . . . . Max in Single Turn 1 | . . . . . . . . . . 1 . . . . . . . . Machines Repaired . | . . . . . . . . . . . . . . . . . . . Machines Sabotaged . | . . . . . . . . . . . . . . . . . . . Overloaded Fab Kills . | . . . . . . . . . . . . . . . . . . . Hacking | -11 -10 -10 -9 -9 -9 -8 -8 -7 -7 -6 -5 -5 -5 -4 -3 -2 -2 -1 --------- Run | Jun Mat Min Mat Min Exi Min Mat Fac DSF Fac Fac Was Fac Fac Res Res DSF Acc Machines Accessed 21 | . 2 . . . 2 . . 1 . 3 . . . 1 5 3 . 4 Terminals 17 | . 2 . . . . . . 1 . 3 . . . 1 5 2 . 3 Fabricators 2 | . . . . . . . . . . . . . . . . 1 . 1 Repair Stations . | . . . . . . . . . . . . . . . . . . . Recycling Units . | . . . . . . . . . . . . . . . . . . . Scanalyzers . | . . . . . . . . . . . . . . . . . . . Garrison Access . | . . . . . . . . . . . . . . . . . . . Total Hacks 53 | . 12 . . . 2 . . 1 . 11 . . . 1 14 7 . 5 Successful 31 | . 7 . . . 2 . . 1 . 8 . . . 1 6 3 . 3 Failed 22 | . 5 . . . . . . . . 3 . . . . 8 4 . 2 Catastrophic 2 | . . . . . . . . . . . . . . . . . . 2 Database Lockouts . | . . . . . . . . . . . . . . . . . . . Manual 41 | . 12 . . . 1 . . . . 10 . . . . 12 4 . 2 Terminals 48 | . 12 . . . . . . 1 . 11 . . . 1 14 5 . 4 Fabricators 3 | . . . . . . . . . . . . . . . . 2 . 1 Repair Stations . | . . . . . . . . . . . . . . . . . . . Recycling Units . | . . . . . . . . . . . . . . . . . . . Scanalyzers . | . . . . . . . . . . . . . . . . . . . Garrison Access . | . . . . . . . . . . . . . . . . . . . Terminal Hacks 16 | . 4 . . . 2 . . 1 . 4 . . . 1 1 2 . 1 Record 2 | . . . . . 1 . . . . . . . . . . 1 . . Part Schematic 1 | . 1 . . . . . . . . . . . . . . . . . Robot Analysis 4 | . 2 . . . . . . . . 2 . . . . . . . . Open Door 1 | . . . . . . . . . . . . . . . . . . 1 Open DSF 2 | . . . . . . . . 1 . . . . . . . 1 . . Level Access Points 1 | . . . . . . . . . . . . . . 1 . . . . Branch Access Points 2 | . . . . . . . . . . 1 . . . . 1 . . . Terminal Index 2 | . 1 . . . . . . . . 1 . . . . . . . . Derelict Proto ID Bank 1 | . . . . . 1 . . . . . . . . . . . . . Fabricator Hacks 1 | . . . . . . . . . . . . . . . . . . 1 Build 1 | . . . . . . . . . . . . . . . . . . 1 Repair Station Hacks . | . . . . . . . . . . . . . . . . . . . Recycling Unit Hacks . | . . . . . . . . . . . . . . . . . . . Scanalyzer . | . . . . . . . . . . . . . . . . . . . Garrison Access Hacks . | . . . . . . . . . . . . . . . . . . . Unauthorized Hacks 14 | . 3 . . . . . . . . 4 . . . . 5 1 . 1 Terminals 14 | . 3 . . . . . . . . 4 . . . . 5 1 . 1 Assimilate 1 | . . . . . . . . . . 1 . . . . . . . . Botnet 11 | . 2 . . . . . . . . 2 . . . . 5 1 . 1 Operators 2 | . 1 . . . . . . . . 1 . . . . . . . . Fabricators . | . . . . . . . . . . . . . . . . . . . Repair Stations . | . . . . . . . . . . . . . . . . . . . Recycling Units . | . . . . . . . . . . . . . . . . . . . Scanalyzers . | . . . . . . . . . . . . . . . . . . . Garrison Access . | . . . . . . . . . . . . . . . . . . . Data Cores Recovered 2 | . . . . . . . . . . . . . . 1 . . . 1 Used 1 | . . . . . . . . . . . . . . . . . . 1 Hacking Detections 17 | . 2 . . . . . . . . 3 . . . . 5 3 . 4 Full Trace Events 1 | . . . . . . . . . . . . . . . . . . 1 Feedback Events 1 | . . . . . . . . . . . . . . . . . . 1 Corruption 1 | . . . . . . . . . . . . . . . . . . 1 Feedback Blocked . | . . . . . . . . . . . . . . . . . . . Robot Schematics Acquired . | . . . . . . . . . . . . . . . . . . . Robots Built 1 | . . . . . . . . . . . . . . . . . . 1 Authchips . | . . . . . . . . . . . . . . . . . . . Time 62 | . . . . . . . . . . . . . . . . . . 62 Total Robot Build Rating 7 | . . . . . . . . . . . . . . . . . . 7 Part Schematics Acquired 1 | . 1 . . . . . . . . . . . . . . . . . Parts Built . | . . . . . . . . . . . . . . . . . . . Authchips . | . . . . . . . . . . . . . . . . . . . Time . | . . . . . . . . . . . . . . . . . . . Total Part Build Rating . | . . . . . . . . . . . . . . . . . . . Parts Repaired . | . . . . . . . . . . . . . . . . . . . Time . | . . . . . . . . . . . . . . . . . . . Parts Recycled . | . . . . . . . . . . . . . . . . . . . Recycled Matter . | . . . . . . . . . . . . . . . . . . . Retrieved Matter . | . . . . . . . . . . . . . . . . . . . Retrieved Components . | . . . . . . . . . . . . . . . . . . . Parts Scanalyzed . | . . . . . . . . . . . . . . . . . . . Part Schematics Acquired . | . . . . . . . . . . . . . . . . . . . Parts Damaged . | . . . . . . . . . . . . . . . . . . . Bothacking | -11 -10 -10 -9 -9 -9 -8 -8 -7 -7 -6 -5 -5 -5 -4 -3 -2 -2 -1 ------------ Run | Jun Mat Min Mat Min Exi Min Mat Fac DSF Fac Fac Was Fac Fac Res Res DSF Acc Used RIF Installer . | . . . . . . . . . . . . . . . . . . . Robots Hacked . | . . . . . . . . . . . . . . . . . . . Non-combat . | . . . . . . . . . . . . . . . . . . . Combat . | . . . . . . . . . . . . . . . . . . . Robot Hacks Applied . | . . . . . . . . . . . . . . . . . . . Relay Couplers Released . | . . . . . . . . . . . . . . . . . . . Fabnet Peak Effective % . | . . . . . . . . . . . . . . . . . . . Robots Rewired . | . . . . . . . . . . . . . . . . . . . Allies Hacked . | . . . . . . . . . . . . . . . . . . . Hacks Repelled . | . . . . . . . . . . . . . . . . . . . Allies | -11 -10 -10 -9 -9 -9 -8 -8 -7 -7 -6 -5 -5 -5 -4 -3 -2 -2 -1 -------- Run | Jun Mat Min Mat Min Exi Min Mat Fac DSF Fac Fac Was Fac Fac Res Res DSF Acc Total Allies 3 | . . . . . . . . . . 1 . 1 . . . . . 1 Largest Group 1 | . . . . . . . . . . . . 1 . . . . . 1 Highest-Rated Group 93 | . . . . . . . . . . . . 31 . . . . . 93 Highest-Rated Ally 93 | . . . . . . . . . . . . 31 . . . . . 93 Total Orders . | . . . . . . . . . . . . . . . . . . . Ally Attacks 9 | . . . . . . . . . . . . 9 . . . . . . Total Damage 202 | . . . . . . . . . . . . 169 . . . . . 33 Kills . | . . . . . . . . . . . . . . . . . . . Allies Corrupted 1 | . . . . . . . . . . . . . . . . . . 1 Allies Melted . | . . . . . . . . . . . . . . . . . . . Intel | -11 -10 -10 -9 -9 -9 -8 -8 -7 -7 -6 -5 -5 -5 -4 -3 -2 -2 -1 ------- Run | Jun Mat Min Mat Min Exi Min Mat Fac DSF Fac Fac Was Fac Fac Res Res DSF Acc Robot Analysis Total 4 | . 2 . . . . . . . . 2 . . . . . . . . Derelict Logs Recovered . | . . . . . . . . . . . . . . . . . . . Drone Launches . | . . . . . . . . . . . . . . . . . . . Drone Recoveries . | . . . . . . . . . . . . . . . . . . . Exploration | -11 -10 -10 -9 -9 -9 -8 -8 -7 -7 -6 -5 -5 -5 -4 -3 -2 -2 -1 ------------- Run | Jun Mat Min Mat Min Exi Min Mat Fac DSF Fac Fac Was Fac Fac Res Res DSF Acc Turns Passed 5403 | . 402 301 537 398 364 346 381 10 392 329 13 37 474 390 450 61 24 494 Spaces Moved 6116 | 1 172 159 265 331 266 202 183 7 111 432 25 77 485 753 1128 164 87 1268 Core . | . . . . . . . . . . . . . . . . . . . Treads 565 | . . . . . 97 202 183 7 76 . . . . . . . . . Legs 1097 | 1 172 159 265 331 169 . . . . . . . . . . . . . Wheels . | . . . . . . . . . . . . . . . . . . . Hover 2358 | . . . . . . . . . 35 432 25 77 485 753 551 . . . Flight 2096 | . . . . . . . . . . . . . . . 577 164 87 1268 Fastest Speed 20 | 190 120 190 120 120 120 160 156 156 52 44 44 44 43 34 23 20 27 20 Average Speed 65 | 190 190 190 153 120 134 160 156 156 124 46 44 44 45 35 27 25 27 26 Slowest Speed 260 | 190 260 190 190 120 160 160 160 156 162 48 44 44 48 43 34 27 30 30 Overloaded Moves . | . . . . . . . . . . . . . . . . . . . Propulsion Burnouts . | . . . . . . . . . . . . . . . . . . . Robots Hopped 16 | . . . . . . . . . . . . . . . 12 . . 4 Cave-ins Triggered 2 | . . . . . . . . . . 1 . . 1 . . . . . Exploration Rate (%) 37 | 1 32 49 38 83 68 58 22 1 77 9 1 70 15 21 41 6 90 37 Regions Visited 18 Branch Regions 4 Pre-discovered Areas 2 | . . . . 1 1 . . . . . . . . . . . . . Known Exits Taken 14 | 1 1 1 1 1 1 1 1 1 . 1 . . 1 1 1 1 . . Unknown Exits Taken . | . . . . . . . . . . . . . . . . . . . Scrap Searched . | . . . . . . . . . . . . . . . . . . . Spaces Dug 68 | . . . . . . . . . . 8 . . 23 21 12 . . 4 Terrain Destroyed 108 | . . . . . . . . . . 35 . . 36 21 12 . . 4 Melee 68 | . . . . . . . . . . 8 . . 23 21 12 . . 4 Projectile . | . . . . . . . . . . . . . . . . . . . AOE 40 | . . . . . . . . . . 27 . . 13 . . . . . Terrain Rammed . | . . . . . . . . . . . . . . . . . . . Walls Destroyed . | . . . . . . . . . . . . . . . . . . . Machines Disabled . | . . . . . . . . . . . . . . . . . . . Actions | -11 -10 -10 -9 -9 -9 -8 -8 -7 -7 -6 -5 -5 -5 -4 -3 -2 -2 -1 --------- Run | Jun Mat Min Mat Min Exi Min Mat Fac DSF Fac Fac Was Fac Fac Res Res DSF Acc Total 7015 | . 210 158 329 331 274 212 242 6 249 533 26 78 685 822 1211 180 86 1383 Wait 421 | . 13 . 8 . . 4 19 . 54 69 . . 152 20 22 . . 60 Move 6066 | . 171 158 264 330 265 201 182 6 110 430 25 76 484 752 1104 163 86 1259 Hop 15 | . . . . . . . . . . . . . . . 11 . . 4 Pick Up 52 | . 3 . 7 . 2 . 9 . 5 2 . 1 2 10 2 5 . 4 Fast Attach 69 | . 3 . 2 . . . 4 . 10 5 1 . 7 2 18 5 . 12 Attach 30 | . 1 . 4 . 3 . 1 . 4 2 . . 1 6 4 . . 4 Detach 4 | . . . 1 . . . . . . . . . . . 1 . . 2 Swap 17 | . 1 . 2 . . . . . . 5 . . 2 1 1 2 . 3 Drop 77 | . . . 6 . 4 . 7 . 9 5 . . 5 6 19 5 . 11 Fire 142 | . 18 . 34 . . 6 18 . 57 6 . . 3 . . . . . Melee 116 | . . . . . . . . . . 8 . 1 29 25 29 . . 24 Ram . | . . . . . . . . . . . . . . . . . . . Kick 2 | . . . 1 1 . . . . . . . . . . . . . . Crush 3 | . . . . . . 1 2 . . . . . . . . . . . Escape Stasis 1 | . . . . . . . . . . 1 . . . . . . . . Rewire . | . . . . . . . . . . . . . . . . . . . Trap . | . . . . . . . . . . . . . . . . . . . Miscellaneous . | . . . . . . . . . . . . . . . . . . . Route ------- -11/Junkyard -10/Materials -10/Mines -9/Materials (discovered 2 exits: *Mat / *Min) -9/Mines (discovered 3 exits: *Mat / *Exi / [*Zio]) -9/Exiles -8/Mines -8/Materials -7/Factory -7/DSF -6/Factory (discovered 5 exits: *Fac / Low x2 / Ext x2) -5/Factory -5/Waste -5/Factory -4/Factory (discovered 4 exits: *Res x4) -3/Research (discovered 4 exits: *Res / Arm / *Qua x2) -2/Research -2/DSF -1/Access To Epsilon Eridani History --------- Turn | Location | Event 1 | -11/Junkyard | Identified exit to Materials 1 | -11/Junkyard | Discovered exit to Materials (range 0) 1 | -11/Junkyard | Entered Materials 1 | -10/Materials | Evolved 1 slot: Propulsion x1 270 | -10/Materials | Identified exit to Mines 270 | -10/Materials | Discovered exit to Mines (range 14) 339 | -10/Materials | Build established: Hacker-Mutant 403 | -10/Materials | Entered Mines 656 | -10/Mines | Identified exit to Materials 656 | -10/Mines | Discovered exit to Materials (range 7) 704 | -10/Mines | Entered Materials 704 | -9/Materials | Evolved 2 slots: Utility x2 977 | -9/Materials | Identified exit to Materials 977 | -9/Materials | Discovered exit to Materials (range 15) 1204 | -9/Materials | Identified exit to Mines 1204 | -9/Materials | Discovered exit to Mines (range 11) 1241 | -9/Materials | Entered Mines 1253 | -9/Mines | A Derelict revealed a hidden shortcut to a safe place 1312 | -9/Mines | A weapon hastily lodged in a ceiling crevice suddenly fell to the ground 1436 | -9/Mines | Discovered exit to Materials (range 8) 1546 | -9/Mines | Learned location of Storage (-7) 1634 | -9/Mines | Deemed a non-threat by the Exiles lab entrance 1634 | -9/Mines | Identified exit to Exiles 1634 | -9/Mines | Discovered exit to Exiles (range 5) 1639 | -9/Mines | Entered Exiles 1668 | -9/Exiles | Met 8R-AWN 1690 | -9/Exiles | Met EX-HEX 1745 | -9/Exiles | Met EX-DEC 1766 | -9/Exiles | Learned location of Zion (-7) 1788 | -9/Exiles | Met EX-BIN 1805 | -9/Exiles | Aligned with FarCom system 1806 | -9/Exiles | Given EX-Vault access code 1838 | -9/Exiles | Opened EX-Vault 1851 | -9/Exiles | Found Flying Fortress v7 1884 | -9/Exiles | Warned to stay clear of 0b10 Research branches 1987 | -9/Exiles | Identified exit to Mines 1987 | -9/Exiles | Discovered exit to Mines (range 10) 2003 | -9/Exiles | Left Exiles lab with Flying Fortress v7 2003 | -9/Exiles | Entered Mines 2329 | -8/Mines | Discovered exit to Materials (range 13) 2349 | -8/Mines | Entered Materials 2349 | -8/Materials | Evolved 2 slots: Power x1, Propulsion x1 2725 | -8/Materials | Identified exit to Factory 2725 | -8/Materials | Discovered exit to Factory (range 4) 2730 | -8/Materials | Entered Factory 2730 | -7/Factory | Evolved 2 slots: Propulsion x2 2740 | -7/Factory | Identified exit to DSF 2740 | -7/Factory | Entered DSF 2774 | -7/DSF | Additional patrols routed to DSF 2906 | -7/DSF | Lost 4 parts (2p2u) 3032 | -7/DSF | Sterilization system engaged 3052 | -7/DSF | Ambient heat levels rising (+10) 3064 | -7/DSF | Lost 3 parts (1p2n) 3067 | -7/DSF | Ambient heat levels rising (+10) 3082 | -7/DSF | Ambient heat levels rising (+10) 3097 | -7/DSF | Ambient heat levels rising (+10) 3112 | -7/DSF | Ambient heat levels rising (+10) 3125 | -7/DSF | Identified exit to Factory 3125 | -7/DSF | Discovered exit to Factory (range 15) 3127 | -7/DSF | Ambient heat levels rising (+10) 3132 | -7/DSF | Entered Factory 3132 | -6/Factory | Evolved 2 slots: Propulsion x2 3219 | -6/Factory | Spotted B-75 Beast 3315 | -6/Factory | Crushed by falling debris 3376 | -6/Factory | Identified exit to Lower Caves 3376 | -6/Factory | Identified exit to Extension 3456 | -6/Factory | Identified exit to Factory 3456 | -6/Factory | Discovered exit to Factory (range 10) 3461 | -6/Factory | Entered another Factory area 3461 | -5/Factory | Evolved 2 slots: Power x1, Propulsion x1 3474 | -5/Factory | Sucked down chute 3474 | -5/Factory | Entered Waste 3475 | -5/Waste | Met a frightened Derelict 3482 | -5/Waste | Spotted C-40 Crusher 3485 | -5/Waste | Spotted C-40 Crusher 3486 | -5/Waste | Spotted C-40 Crusher 3490 | -5/Waste | Spotted C-40 Crusher 3490 | -5/Waste | Spotted C-40 Crusher 3496 | -5/Waste | Spotted C-40 Crusher 3500 | -5/Waste | Identified exit to Factory 3500 | -5/Waste | Discovered exit to Factory (range 15) 3509 | -5/Waste | Found Enh. Force Lance 3511 | -5/Waste | Entered Factory 3715 | -5/Factory | Crushed by falling debris 3747 | -5/Factory | Lost 3 parts (1p1n1u) 3981 | -5/Factory | Identified exit to Factory 3981 | -5/Factory | Discovered exit to Factory (range 10) 3985 | -5/Factory | Entered another Factory area 3985 | -4/Factory | Evolved 2 slots: Propulsion x2 4043 | -4/Factory | Identified exit to Research 4049 | -4/Factory | Spotted B-86 Titan 4352 | -4/Factory | Spotted B-86 Titan 4375 | -4/Factory | Entered Research 4375 | -3/Research | Evolved 2 slots: Propulsion x2 4644 | -3/Research | Found Prototype Slashing Weapon 4644 | -3/Research | Identified Nanosword 4711 | -3/Research | Spotted B-90 Cyclops 4713 | -3/Research | Build established: Hacker-Sprinter 4713 | -3/Research | Identified exit to Quarantine 4713 | -3/Research | Discovered exit to Quarantine (range 6) 4733 | -3/Research | Identified exit to Armory 4820 | -3/Research | Identified exit to Research 4820 | -3/Research | Discovered exit to Research (range 5) 4825 | -3/Research | Entered another Research area 4825 | -2/Research | Evolved 2 slots: Power x1, Propulsion x1 4886 | -2/Research | Identified exit to DSF 4886 | -2/Research | Entered DSF 4903 | -2/DSF | Additional patrols routed to DSF 4904 | -2/DSF | Identified exit to Access 4904 | -2/DSF | Discovered exit to Access (range 14) 4910 | -2/DSF | Entered Access 4910 | -1/Access | Evolved 2 slots: Propulsion x2 4948 | -1/Access | Found Prototype Hackware 4948 | -1/Access | Identified Exp. Hacking Suite 5016 | -1/Access | Fabricated A-27 Freighter (x1) 5273 | -1/Access | Found Enh. Force Lance 5358 | -1/Access | Spotted B-99 Colossus 5359 | -1/Access | Spotted B-99 Colossus 5403 | -1/Access | Identified exit to Surface 5403 | -1/Access | Discovered exit to Surface (range 6) 5404 | *** | Escaped! Last Messages --------------- 05273_ Acquired Enh. Force Lance. 05285_ Imp. System Restoration Module purges 1% system corruption (0%). 05324_ Destroyed Antigrav System. 05333_ Destroyed Adv. Sensor Array. 05337_ W-44 Eye destroyed. 05340_ Acquired 30 matter. 05351_ Dropped Impulse Thruster. 05351_ Acquired Diametric Drive. 05353_ Dropped Impulse Thruster. 05353_ Acquired Diametric Drive. 05359_ Penetrated by Slug. 05359_ Slug penetrates Wall. 05359_ Penetrated by Slug. 05359_ Slug penetrates Wall. 05366_ Acquired 7 matter. 05402_ Connecting with Terminal... >>Open(Door) Sealed Barrier opened. 05403_ The Access Shell folds into the floor. 05403_ EXIT=FOUND: SURFACE Map ----- +----------------------------------------------------+ | #????????????????????????????????????# """ | | #????????????????????????????????????# """ | | #####????????????????????????????????# " | | #????????????????????????????????# | | #????????????????????????????????# * | | #????????????????????????????????# | | #????????????????????????????????# | | " #????????????????????????????????# = | | " #????????????????????????????????#########+### | | #???????????##########?????????????????# | | ###+######? ] #?????????????????# | | #? #?????????????????# | | #* #?????????????????# | | # #?????????????????# ## | | #+######### + #?????????????????# #? | | ??????????# # #?????????????????# ## | | ??????????# # #?????????????????# | | ??????????# #?###########?????????????????# | | ??????????# #?????###?????????????????????# | | ??????????# ####### ##########??######????# | | ??????????# """T""" "??" ???# % ## | | ??????????# """ """ "??" ??# "# | | ??????????# "??" ### ## | | ??????????# "??" #? | | ??????????# "" "??" #? | | ??????????# @" "??" #? | | ??????????# "??" #? | | ??????????# "??" BB ###+####? | | ??????????# "??" BB ? ??? | | ??????????# "??" ?# ? | | ??????????# ####### ##########??#######?# | | ??????????# #?????###???????????????????# | | ??????????# ????????????????????????????# | | ??????????# ????????????????????????????# | | ??????????# ????????????????????????????# | | ??????????# ????????????????????????????# | | ??????????# ????????????????????????????######### | | ??????????# ????????????????????????????????????? | | ??????????# ????????????????????????????????????? | | ??????????? ?????????????????????????????????????? | | ?????????????????????????????????????????????????? | | ?????????????????????????????????????????????????? | | ?????????????????????????????????????????????????? | | ?????????????????????????????????????????????????? | | ?????????????????????????????????????????????????? | | ?????????????????????????????????????????????????? | | ?????????????????????????????????????????????????? | | ?????????????????????????????????????????????????? | | ?????????????????????????????????????????????????? | | ?????????????????????????????????????????????????? | +----------------------------------------------------+ Best States ------------- Heat Dissipation 104 Coolant Potential 100 Energy Generation 67 Energy Capacity 435 Matter Stores 300 Matter Capacity 300 Sight Range 16 Terrain Scan Density 10 ECM Strength 1 Jamming Range 12 Cloak Strength 4 Armor Coverage 375 Resistance: KI 35 Resistance: TH 35 Resistance: EX 35 Resistance: EM 35 Resistance: I 35 Resistance: S 35 Resistance: P 35 Propulsion Shielding 66 Evasion (%) 66 Targeting Accuracy 20 Recoil Reduction 6 Offensive Hacking 36 Item Schematics ----------------- Huge Storage Unit | -10/Materials | Hacked Robot Schematics ------------------ None Fabricated ------------ A-27 Freighter | x1 | -1/Access | Preloaded Alien Tech Used ----------------- None Achievements -------------- None Challenges ------------ None Game ------ Seed ExperimentalGhostActivator Manual? 0 Play Time 00:42:05 Cumulative 373.3 hours Start 2023.07.25 @ 07:42:11 End 2023.07.25 @ 08:23:28 Sessions 1 Manual Loads 0 Difficulty Explorer Special Mode None Game No. 554 Rogue 526 Adventurer 4 Explorer 24 Win Type 0 Total 21 Types 15/0/2/2/1/0/0/1/0 Lore% 81 Gallery% 91 Achievement% 83 Wizard Run 0 Options --------- ASCII 0 Keyboard 1 Movement Numpad Keybinds 0 Fullscreen 1 Font 18/SmallcapsGlow Map View 76x50 Tactical HUD 1 Map Filters NONE Filters NONE Steam 1 RUN: 4163b8ae-f9ea-46d7-92a9-544dc99fc46f